fUST/lending_fUST_20250704
["ID","MTS","AMOUNT","RATE_DAILY","PERIOD"]
[369389432,1751563847103,-2537.84,0.00018082,2]
[369389434,1751563847114,-2022.25,0.00018082,2]
[369389436,1751563847123,-460.0,0.00018082,2]
[369389438,1751563847132,-1043.59,0.00018082,2]
[369389440,1751563847141,-460.0,0.00018082,2]
[369389442,1751563847151,-460.0,0.00018082,2]
[369389444,1751563847160,-460.0,0.00018082,2]
[369389446,1751563847169,-460.0,0.00018082,2]
[369389448,1751563847178,-460.0,0.00018082,2]
[369389450,1751563847187,-783.72,0.00018082,2]
[369389452,1751563847196,-460.0,0.00018082,2]
[369389454,1751563847206,-460.0,0.00018082,2]
[369389456,1751563847216,-2875.89,0.00018082,2]
[369389458,1751563847225,-460.0,0.00018082,2]
[369389460,1751563847234,-549.97,0.00018082,2]
[369389462,1751563847243,-460.0,0.00018082,2]
[369389464,1751563847252,-460.0,0.00018082,2]
[369389466,1751563847262,-3697.57,0.00018082,2]
[369389468,1751563847271,-1173.47,0.00018082,2]
[369389470,1751563847280,-460.0,0.00018082,2]
[369389472,1751563847290,-460.0,0.00018082,2]
[369389474,1751563847300,-1662.84,0.00018082,2]
[369389476,1751563847309,-321.48,0.00018082,2]
[369389478,1751563847319,-2045.68,0.00018082,2]
[369389480,1751563847328,-460.0,0.00018082,2]
[369389482,1751563847337,-837.76,0.00018082,2]
[369389484,1751563847346,-650.19,0.00018082,2]
[369389486,1751563847356,-820.62,0.00018082,2]
[369389488,1751563847365,-460.0,0.00018082,2]
[369389490,1751563847374,-460.0,0.00018082,2]
[369389492,1751563847383,-1704.48,0.00018082,2]
[369389494,1751563847393,-3876.44,0.00018082,2]
[369389496,1751563847402,-460.0,0.00018082,2]
[369389498,1751563847411,-937.63,0.00018082,2]
[369389500,1751563847420,-460.0,0.00018082,2]
[369389502,1751563847429,-460.0,0.00018082,2]
[369389504,1751563847439,-460.0,0.00018082,2]
[369389506,1751563847448,-460.0,0.00018082,2]
[369389508,1751563847457,-250.0,0.00018097,2]
[369389510,1751563847466,-151.0,0.000181,2]
[369389512,1751563847475,-151.0,0.000182,2]
[369389514,1751563847484,-587.0,0.00018214,2]
[369389516,1751563847493,-1000.0,0.00018354,2]
[369389518,1751563847503,-1000.0,0.00018355,2]
[369389520,1751563847512,-460.0,0.00018356,2]
[369389522,1751563847521,-941.7,0.00018356,2]
[369389524,1751563847530,-460.0,0.00018356,2]
[369389526,1751563847539,-460.0,0.00018356,2]
[369389528,1751563847548,-460.0,0.00018356,2]
[369389530,1751563847558,-460.0,0.00018356,2]
[369389532,1751563847567,-1061.72,0.00018356,2]
[369389534,1751563847576,-316.16,0.00018356,2]
[369389536,1751563847585,-527.61,0.00018356,2]
[369389538,1751563847594,-1182.01,0.00018356,2]
[369389540,1751563847604,-460.0,0.00018356,2]
[369389542,1751563847613,-460.0,0.00018356,2]
[369389544,1751563847622,-2701.36,0.00018356,2]
[369389546,1751563847631,-196.82976634,0.00018356,2]
[369389548,1751563847641,-460.0,0.00018356,2]
[369389550,1751563847650,-237.1,0.00018356,2]
[369389552,1751563847659,-2515.67,0.00018356,2]
[369389554,1751563847668,-460.0,0.00018356,2]
[369389556,1751563847677,-460.0,0.00018356,2]
[369389558,1751563847687,-334.42818556,0.00018356,2]
[369389560,1751563847696,-460.0,0.00018356,2]
[369389562,1751563847706,-460.0,0.00018356,2]
[369389564,1751563847715,-997.47,0.00018356,2]
[369389566,1751563847724,-2537.84,0.00018356,2]
[369389568,1751563847734,-2022.25,0.00018356,2]
[369389570,1751563847745,-460.0,0.00018356,2]
[369389572,1751563847756,-1043.59,0.00018356,2]
[369389574,1751563847765,-340.11274023,0.00018356,2]
[369389576,1751563847774,-460.0,0.00018356,2]
[369389578,1751563847783,-460.0,0.00018356,2]
[369389580,1751563847792,-460.0,0.00018356,2]
[369389582,1751563847802,-460.0,0.00018356,2]
[369389584,1751563847811,-783.72,0.00018356,2]
[369389586,1751563847820,-460.0,0.00018356,2]
[369389588,1751563847829,-2875.89,0.00018356,2]
[369389590,1751563847839,-460.0,0.00018356,2]
[369389592,1751563847848,-549.97,0.00018356,2]
[369389594,1751563847858,-460.0,0.00018356,2]
[369389596,1751563847867,-460.0,0.00018356,2]
[369389598,1751563847876,-3697.57,0.00018356,2]
[369389600,1751563847886,-1173.47,0.00018356,2]
[369389602,1751563847895,-460.0,0.00018356,2]
[369389604,1751563847904,-460.0,0.00018356,2]
[369389606,1751563847913,-1662.84,0.00018356,2]
[369389608,1751563847921,-2045.68,0.00018356,2]
[369389610,1751563847930,-460.0,0.00018356,2]
[369389612,1751563847939,-837.76,0.00018356,2]
[369389614,1751563847949,-650.19,0.00018356,2]
[369389616,1751563847958,-820.62,0.00018356,2]
[369389618,1751563847968,-460.0,0.00018356,2]
[369389620,1751563847977,-460.0,0.00018356,2]
[369389622,1751563847986,-1704.48,0.00018356,2]
[369389624,1751563847995,-3876.44,0.00018356,2]
[369389626,1751563848004,-460.0,0.00018356,2]
[369389627,1751563848014,-937.63,0.00018356,2]
[369389630,1751563848023,-460.0,0.00018356,2]
[369389632,1751563848033,-460.0,0.00018356,2]
[369389633,1751563848042,-460.0,0.00018356,2]
[369389636,1751563848051,-460.0,0.00018356,2]
[369389637,1751563848061,-1000.0,0.00018463,2]
[369389639,1751563848071,-1000.0,0.00018463,2]
[369389641,1751563848081,-1000.0,0.00018463,2]
[369389643,1751563848093,-1000.0,0.00018463,2]
[369389645,1751563848102,-252.05932548,0.00018463,2]
[369389647,1751563848111,-2000.0,0.00018489,2]
[369389649,1751563848121,-215.07701991,0.00018588,2]
[369389651,1751563848130,-213.94585247,0.00018588,2]
[369389653,1751563848141,-160.0,0.00018588,2]
[369389656,1751563848151,-160.0,0.00018588,2]
[369389657,1751563848160,-230.37558374,0.00018588,2]
[369389660,1751563848173,-12575.98004106,0.00018588,2]
[369389661,1751563848184,-160.0,0.00018588,2]
[369389663,1751563848193,-160.0,0.00018588,2]
[369389665,1751563848203,-160.0,0.00018588,2]
[369389667,1751563848212,-837.389109,0.00018588,2]
[369389669,1751563848222,-847.79783075,0.00018588,2]
[369389671,1751563848231,-160.0,0.00018588,2]
[369389673,1751563848241,-160.0,0.00018589,2]
[369389675,1751563848250,-160.0,0.00018589,2]
[369389677,1751563848260,-151.0,0.000186,2]
[369389679,1751563848269,-460.0,0.0001863,2]
[369389681,1751563848279,-941.7,0.0001863,2]
[369389683,1751563848288,-460.0,0.0001863,2]
[369389685,1751563848297,-460.0,0.0001863,2]
[369389687,1751563848307,-239.77186916,0.0001863,2]
[369389689,1751563848317,-460.0,0.0001863,2]
[369389691,1751563848326,-1061.72,0.0001863,2]
[369389693,1751563848335,-527.61,0.0001863,2]
[369389695,1751563848344,-1182.01,0.0001863,2]
[369389697,1751563848354,-460.0,0.0001863,2]
[369389699,1751563848363,-460.0,0.0001863,2]
[369389701,1751563848373,-2701.36,0.0001863,2]
[369389703,1751563848383,-460.0,0.0001863,2]
[369389705,1751563848392,-2515.67,0.0001863,2]
[369389707,1751563848401,-460.0,0.0001863,2]
[369389709,1751563848410,-460.0,0.0001863,2]
[369389711,1751563848420,-460.0,0.0001863,2]
[369389713,1751563848430,-460.0,0.0001863,2]
[369389715,1751563848439,-997.47,0.0001863,2]
[369389717,1751563848448,-2537.84,0.0001863,2]
[369389719,1751563848457,-2022.25,0.0001863,2]
[369389721,1751563848466,-402.73,0.0001863,2]
[369389723,1751563848475,-1043.59,0.0001863,2]
[369389725,1751563848484,-460.0,0.0001863,2]
[369389727,1751563848494,-460.0,0.0001863,2]
[369389729,1751563848503,-460.0,0.0001863,2]
[369389731,1751563848513,-460.0,0.0001863,2]
[369389733,1751563848523,-783.72,0.0001863,2]
[369389735,1751563848533,-460.0,0.0001863,2]
[369389737,1751563848543,-2875.89,0.0001863,2]
[369389753,1751563848679,-460.0,0.0001863,2]
[369389755,1751563848689,-549.97,0.0001863,2]
[369389756,1751563848699,-460.0,0.0001863,2]
[369389758,1751563848709,-460.0,0.0001863,2]
[369389760,1751563848719,-3697.57,0.0001863,2]
[369389763,1751563848728,-1173.47,0.0001863,2]
[369389765,1751563848739,-460.0,0.0001863,2]
[369389766,1751563848748,-460.0,0.0001863,2]
[369389769,1751563848759,-1662.84,0.0001863,2]
[369389771,1751563848768,-2045.68,0.0001863,2]
[369389773,1751563848778,-460.0,0.0001863,2]
[369389775,1751563848787,-837.76,0.0001863,2]
[369389777,1751563848797,-650.19,0.0001863,2]
[369389779,1751563848806,-820.62,0.0001863,2]
[369389781,1751563848815,-460.0,0.0001863,2]
[369389783,1751563848824,-460.0,0.0001863,2]
[369389785,1751563848834,-1704.48,0.0001863,2]
[369389787,1751563848843,-3876.44,0.0001863,2]
[369389789,1751563848853,-460.0,0.0001863,2]
[369389791,1751563848862,-937.63,0.0001863,2]
[369389793,1751563848871,-460.0,0.0001863,2]
[369389795,1751563848880,-460.0,0.0001863,2]
[369389797,1751563848890,-460.0,0.0001863,2]
[369389799,1751563848899,-460.0,0.0001863,2]
[369389801,1751563848909,-151.0,0.000187,2]
[369389803,1751563848919,-151.0,0.000187,2]
[369389805,1751563848928,-151.0,0.000189,2]
[369389807,1751563848938,-460.0,0.00018904,2]
[369389809,1751563848947,-941.7,0.00018904,2]
[369389811,1751563848956,-460.0,0.00018904,2]
[369389812,1751563848965,-460.0,0.00018904,2]
[369389815,1751563848975,-460.0,0.00018904,2]
[369389817,1751563848984,-1061.72,0.00018904,2]
[369389818,1751563848994,-527.61,0.00018904,2]
[369389819,1751563849003,-1182.01,0.00018904,2]
[369389820,1751563849013,-460.0,0.00018904,2]
[369389821,1751563849022,-460.0,0.00018904,2]
[369389822,1751563849031,-2701.36,0.00018904,2]
[369389823,1751563849041,-460.0,0.00018904,2]
[369389824,1751563849051,-2515.67,0.00018904,2]
[369389825,1751563849060,-460.0,0.00018904,2]
[369389826,1751563849072,-460.0,0.00018904,2]
[369389827,1751563849084,-460.0,0.00018904,2]
[369389828,1751563849093,-460.0,0.00018904,2]
[369389829,1751563849102,-997.47,0.00018904,2]
[369389830,1751563849112,-2537.84,0.00018904,2]
[369389832,1751563849121,-2022.25,0.00018904,2]
[369389833,1751563849131,-1043.59,0.00018904,2]
[369389835,1751563849141,-460.0,0.00018904,2]
[369389837,1751563849151,-460.0,0.00018904,2]
[369389839,1751563849160,-78.59708655,0.00018904,2]
[369389854,1751563849302,-282.86,0.00018904,2]
[369389865,1751563849402,-98.54291345,0.00018904,2]
[369389867,1751563849412,-460.0,0.00018904,2]
[369389869,1751563849422,-783.72,0.00018904,2]
[369389871,1751563849431,-460.0,0.00018904,2]
[369389873,1751563849441,-2875.89,0.00018904,2]
[369389875,1751563849451,-460.0,0.00018904,2]
[369389878,1751563849461,-549.97,0.00018904,2]
[369389880,1751563849470,-460.0,0.00018904,2]
[369389881,1751563849479,-460.0,0.00018904,2]
[369389883,1751563849489,-3697.57,0.00018904,2]
[369389886,1751563849498,-1173.47,0.00018904,2]
[369389887,1751563849507,-460.0,0.00018904,2]
[369389889,1751563849517,-419.66,0.00018904,2]
[369389892,1751563849526,-1662.84,0.00018904,2]
[369389894,1751563849536,-2045.68,0.00018904,2]
[369389896,1751563849546,-460.0,0.00018904,2]
[369389898,1751563849555,-837.76,0.00018904,2]
[369389899,1751563849564,-650.19,0.00018904,2]
[369389901,1751563849574,-820.62,0.00018904,2]
[369389903,1751563849583,-460.0,0.00018904,2]
[369389905,1751563849592,-460.0,0.00018904,2]
[369389907,1751563849601,-1694.42972695,0.00018904,2]
[369389910,1751563849612,-10.05027305,0.00018904,2]
[369389912,1751563849621,-704.73053508,0.00018904,2]
[369389914,1751563849632,-1214.69849881,0.00018904,2]
[369389916,1751563849643,-1957.01096611,0.00018904,2]
[369389918,1751563849652,-262.70148438,0.00018904,2]
[369389924,1751563849695,-605.75505831,0.00016438,2]
[369389926,1751563849704,-197.29851562,0.00018904,2]
[369389928,1751563849714,-922.42642657,0.00018904,2]
[369389949,1751563849908,-15.20357343,0.00018904,2]
[369389951,1751563849918,-460.0,0.00018904,2]
[369389953,1751563849928,-460.0,0.00018904,2]
[369389955,1751563849937,-460.0,0.00018904,2]
[369389957,1751563849946,-460.0,0.00018904,2]
[369389959,1751563849955,-151.0,0.00019,2]
[369389961,1751563849965,-151.0,0.00019,2]
[369389963,1751563849974,-2500.0,0.00019037,2]
[369389965,1751563849983,-2094.31040325,0.00019098,2]
[369389967,1751563849992,-19190.7542235,0.00019117,2]
[369389969,1751563850003,-386.59980607,0.00019136,2]
[369389971,1751563850012,-460.0,0.00019178,2]
[369389973,1751563850021,-941.7,0.00019178,2]
[369389975,1751563850030,-460.0,0.00019178,2]
[369389977,1751563850040,-460.0,0.00019178,2]
[369389979,1751563850049,-1061.72,0.00019178,2]
[369389981,1751563850058,-527.61,0.00019178,2]
[369389983,1751563850068,-2701.36,0.00019178,2]
[369389985,1751563850077,-2515.67,0.00019178,2]
[369389987,1751563850087,-460.0,0.00019178,2]
[369389989,1751563850098,-460.0,0.00019178,2]
[369389991,1751563850107,-460.0,0.00019178,2]
[369389993,1751563850117,-460.0,0.00019178,2]
[369389995,1751563850126,-997.47,0.00019178,2]
[369389997,1751563850135,-2537.84,0.00019178,2]
[369389999,1751563850144,-2022.25,0.00019178,2]
[369390001,1751563850153,-1043.59,0.00019178,2]
[369390003,1751563850163,-460.0,0.00019178,2]
[369390005,1751563850172,-460.0,0.00019178,2]
[369390006,1751563850181,-460.0,0.00019178,2]
[369390008,1751563850191,-460.0,0.00019178,2]
[369390010,1751563850200,-783.72,0.00019178,2]
[369390012,1751563850209,-460.0,0.00019178,2]
[369390014,1751563850218,-2875.89,0.00019178,2]
[369390016,1751563850227,-460.0,0.00019178,2]
[369390018,1751563850236,-549.97,0.00019178,2]
[369390020,1751563850246,-526.1171137,0.00019178,2]
[369390022,1751563850255,-460.0,0.00019178,2]
[369390024,1751563850264,-3697.57,0.00019178,2]
[369390026,1751563850273,-1173.47,0.00019178,2]
[369390028,1751563850282,-460.0,0.00019178,2]
[369390030,1751563850292,-1662.84,0.00019178,2]
[369390032,1751563850301,-2045.68,0.00019178,2]
[369390034,1751563850311,-460.0,0.00019178,2]
[369390036,1751563850320,-837.76,0.00019178,2]
[369390038,1751563850329,-650.19,0.00019178,2]
[369390040,1751563850339,-820.62,0.00019178,2]
[369390042,1751563850348,-460.0,0.00019178,2]
[369390044,1751563850359,-460.0,0.00019178,2]
[369390046,1751563850368,-1704.48,0.00019178,2]
[369390049,1751563850378,-3876.44,0.00019178,2]
[369390051,1751563850389,-460.0,0.00019178,2]
[369390052,1751563850398,-937.63,0.00019178,2]
[369390054,1751563850407,-460.0,0.00019178,2]
[369390056,1751563850418,-460.0,0.00019178,2]
[369390058,1751563850427,-460.0,0.00019178,2]
[369390060,1751563850437,-293.84,0.00019178,2]
[369390062,1751563850447,-666.0,0.00019178,2]
[369390064,1751563850457,-151.0,0.000193,2]
[369390066,1751563850467,-151.0,0.000193,2]
[369390068,1751563850476,-151.0,0.00019329,2]
[369390070,1751563850486,-100000.0,0.00019329,2]
[369390072,1751563850495,-169.19054212,0.00019352,2]
[369390074,1751563850505,-460.0,0.00019452,2]
[369390076,1751563850514,-941.7,0.00019452,2]
[369390078,1751563850524,-460.0,0.00019452,2]
[369390080,1751563850533,-233.68,0.00019452,2]
[369390082,1751563850543,-151.0,0.00019452,2]
[369390084,1751563850552,-151.0,0.00019452,2]
[369390086,1751563850562,-151.0,0.00019452,2]
[369390089,1751563850571,-151.0,0.00019452,2]
[369390091,1751563850581,-151.0,0.00019452,2]
[369390093,1751563850590,-151.0,0.00019452,2]
[369390095,1751563850600,-151.0,0.00019452,2]
[369390097,1751563850609,-151.0,0.00019452,2]
[369390098,1751563850618,-1061.72,0.00019452,2]
[369390100,1751563850627,-151.0,0.00019452,2]
[369390102,1751563850637,-527.61,0.00019452,2]
[369390104,1751563850646,-2701.36,0.00019452,2]
[369390106,1751563850655,-2515.67,0.00019452,2]
[369390108,1751563850664,-460.0,0.00019452,2]
[369390110,1751563850673,-460.0,0.00019452,2]
[369390112,1751563850683,-460.0,0.00019452,2]
[369390114,1751563850692,-460.0,0.00019452,2]
[369390116,1751563850701,-997.47,0.00019452,2]
[369390118,1751563850710,-2537.84,0.00019452,2]
[369390121,1751563850720,-2022.25,0.00019452,2]
[369390123,1751563850730,-1043.59,0.00019452,2]
[369390125,1751563850739,-460.0,0.00019452,2]
[369390126,1751563850748,-460.0,0.00019452,2]
[369390128,1751563850758,-460.0,0.00019452,2]
[369390131,1751563850768,-460.0,0.00019452,2]
[369390133,1751563850777,-783.72,0.00019452,2]
[369390135,1751563850786,-460.0,0.00019452,2]
[369390137,1751563850796,-2875.89,0.00019452,2]
[369390139,1751563850805,-460.0,0.00019452,2]
[369390141,1751563850814,-549.97,0.00019452,2]
[369390143,1751563850823,-460.0,0.00019452,2]
[369390144,1751563850832,-3697.57,0.00019452,2]
[369390146,1751563850841,-1173.47,0.00019452,2]
[369390148,1751563850850,-460.0,0.00019452,2]
[369390150,1751563850859,-1662.84,0.00019452,2]
[369390152,1751563850869,-2045.68,0.00019452,2]
[369390154,1751563850878,-460.0,0.00019452,2]
[369390156,1751563850887,-837.76,0.00019452,2]
[369390158,1751563850896,-650.19,0.00019452,2]
[369390160,1751563850906,-820.62,0.00019452,2]
[369390162,1751563850915,-332.49,0.00019452,2]
[369390164,1751563850924,-460.0,0.00019452,2]
[369390166,1751563850933,-1704.48,0.00019452,2]
[369390168,1751563850942,-3876.44,0.00019452,2]
[369390170,1751563850954,-460.0,0.00019452,2]
[369390172,1751563850966,-460.0,0.00019452,2]
[369390174,1751563850975,-937.63,0.00019452,2]
[369390176,1751563850985,-419.50257702,0.00019452,2]
[369390178,1751563850994,-460.0,0.00019452,2]
[369390180,1751563851003,-500.0,0.00019467,2]
[369390182,1751563851013,-500.0,0.00019467,2]
[369390184,1751563851022,-500.0,0.00019518,2]
[369390200,1751563851161,-2257.2143559,0.00019585,2]
[369390202,1751563851171,-151.0,0.000196,2]
[369390204,1751563851181,-460.0,0.00019726,2]
[369390206,1751563851191,-941.7,0.00019726,2]
[369390208,1751563851200,-460.0,0.00019726,2]
[369390209,1751563851210,-1061.72,0.00019726,2]
[369390210,1751563851220,-527.61,0.00019726,2]
[369390211,1751563851229,-2701.36,0.00019726,2]
[369390212,1751563851239,-2515.67,0.00019726,2]
[369390213,1751563851248,-460.0,0.00019726,2]
[369390214,1751563851257,-460.0,0.00019726,2]
[369390215,1751563851266,-460.0,0.00019726,2]
[369390216,1751563851276,-432.44055632,0.00019726,2]
[369390217,1751563851285,-997.47,0.00019726,2]
[369390218,1751563851294,-2537.84,0.00019726,2]
[369390219,1751563851303,-2022.25,0.00019726,2]
[369390220,1751563851313,-1043.59,0.00019726,2]
[369390221,1751563851321,-460.0,0.00019726,2]
[369390222,1751563851330,-460.0,0.00019726,2]
[369390223,1751563851339,-241.9,0.00019726,2]
[369390224,1751563851348,-460.0,0.00019726,2]
[369390225,1751563851357,-783.72,0.00019726,2]
[369390226,1751563851366,-460.0,0.00019726,2]
[369390227,1751563851376,-2875.89,0.00019726,2]
[369390228,1751563851385,-460.0,0.00019726,2]
[369390229,1751563851394,-549.97,0.00019726,2]
[369390230,1751563851403,-477.74298739,0.00019726,2]
[369390231,1751563851412,-3697.57,0.00019726,2]
[369390232,1751563851421,-1173.47,0.00019726,2]
[369390233,1751563851430,-460.0,0.00019726,2]
[369390234,1751563851439,-1662.84,0.00019726,2]
[369390235,1751563851448,-2045.68,0.00019726,2]
[369390236,1751563851458,-460.0,0.00019726,2]
[369390237,1751563851467,-837.76,0.00019726,2]
[369390238,1751563851477,-650.19,0.00019726,2]
[369390239,1751563851486,-820.62,0.00019726,2]
[369390240,1751563851495,-460.0,0.00019726,2]
[369390241,1751563851504,-1704.48,0.00019726,2]
[369390242,1751563851514,-3876.44,0.00019726,2]
[369390244,1751563851523,-545.89923303,0.00019726,2]
[369390245,1751563851532,-460.0,0.00019726,2]
[369390247,1751563851541,-937.63,0.00019726,2]
[369390249,1751563851551,-532.24,0.00019726,2]
[369390251,1751563851559,-366.4782688,0.00019863,2]
[369390253,1751563851570,-2600.3191144,0.00019884,2]
[369390255,1751563851579,-151.0,0.000199,2]
[369390257,1751563851588,-690.642,0.00019907,2]
[369390258,1751563851597,-5000.0,0.00019907,2]
[369390261,1751563851607,-4436.05959284,0.00019907,2]
[369390263,1751563851616,-207.4,0.00019907,2]
[369390265,1751563851625,-500.0,0.00019907,2]
[369390267,1751563851633,-500.0,0.00019907,2]
[369390269,1751563851643,-500.0,0.00019907,2]
[369390270,1751563851652,-500.0,0.00019907,2]
[369390272,1751563851661,-500.0,0.00019907,2]
[369390274,1751563851670,-500.0,0.00019907,2]
[369390276,1751563851680,-500.0,0.00019907,2]
[369390278,1751563851689,-500.0,0.00019907,2]
[369390281,1751563851698,-500.0,0.00019907,2]
[369390283,1751563851708,-500.0,0.00019907,2]
[369390284,1751563851717,-500.0,0.00019907,2]
[369390286,1751563851726,-17184.64368866,0.00019907,2]
[369396499,1751564010428,213.98794603,0.000222,69]
[369396500,1751564015436,213.98794602,0.00024605,79]
[369396501,1751564050045,-193.85848321,0.00015112,2]
[369396502,1751564053308,-190.74429713,0.00015112,2]
[369396506,1751564240487,-199.41607467,0.0001511,2]
[369396507,1751564245127,-137.11135811,0.0001511,2]
[369396508,1751564430624,-221.3810714,0.00015108,2]
[369396509,1751564433301,-73.0804323,0.00015108,2]
[369396510,1751564448997,4513.3448,0.0002739,120]
[369396512,1751564622957,-163.46177269,0.00015107,2]
[369396513,1751564625107,-94.19204303,0.00015107,2]
[369396516,1751564644655,1000.0,0.00027,120]
[369396517,1751564647833,219.219701,0.00013699,2]
[369396518,1751564837108,-300.0,0.00015204,2]
[369396519,1751564837131,-368.14509722,0.00015205,2]
[369396537,1751565008598,-178.71243138,0.00015104,2]
[369396538,1751565010998,-46.73465734,0.00015104,2]
[369396626,1751565033039,-300.0,0.00015203,2]
[369396627,1751565033050,-290.4,0.00015204,2]
[369396628,1751565033063,-209.6,0.00015204,2]
[369396629,1751565033075,-500.0,0.00015204,2]
[369396630,1751565033086,-500.0,0.00015204,2]
[369396631,1751565033097,-500.0,0.00015204,2]
[369396633,1751565033108,-1127.07264373,0.00015259,2]
[369396665,1751565038523,-500.0,0.00015203,2]
[369396667,1751565038534,-162.0,0.00015203,2]
[369396669,1751565038545,-193.85848321,0.00015203,2]
[369396671,1751565038555,-500.0,0.00015203,2]
[369396673,1751565038564,-593.30558014,0.00015203,2]
[369396675,1751565038575,-500.0,0.00015203,2]
[369396677,1751565038584,-500.0,0.00015203,2]
[369396679,1751565038593,-500.0,0.00015203,2]
[369396681,1751565038604,-580.72695458,0.00015203,2]
[369396683,1751565038613,-500.0,0.00015203,2]
[369396685,1751565038623,-500.0,0.00015203,2]
[369396688,1751565038634,-500.0,0.00015203,2]
[369396690,1751565038643,-500.0,0.00015203,2]
[369396692,1751565038653,-533.23019788,0.00015203,2]
[369396694,1751565038668,-300.0,0.00015203,2]
[369396696,1751565038677,-500.0,0.00015203,2]
[369396698,1751565038687,-500.0,0.00015203,2]
[369396699,1751565038701,-500.0,0.00015203,2]
[369396702,1751565038710,-500.0,0.00015203,2]
[369396704,1751565038720,-500.0,0.00015203,2]
[369396706,1751565038730,-500.0,0.00015203,2]
[369396708,1751565038740,-500.0,0.00015203,2]
[369396710,1751565038753,-500.0,0.00015203,2]
[369396712,1751565038763,-500.0,0.00015203,2]
[369396715,1751565038773,-500.0,0.00015203,2]
[369396717,1751565038783,-500.0,0.00015203,2]
[369396719,1751565038792,-500.0,0.00015203,2]
[369396721,1751565038803,-500.0,0.00015203,2]
[369396723,1751565038812,-500.0,0.00015203,2]
[369396725,1751565038821,-500.0,0.00015203,2]
[369396727,1751565038831,-500.0,0.00015203,2]
[369396729,1751565038844,-500.0,0.00015203,2]
[369396731,1751565038854,-23772.92735627,0.00015259,2]
[369396732,1751565038863,-645.7586102,0.00015657,2]
[369396734,1751565038873,-221.189323,0.00015732,2]
[369396736,1751565038882,-151.0,0.00016428,2]
[369396739,1751565038891,-151.0,0.00016428,2]
[369396740,1751565038901,-151.0,0.00016428,2]
[369396742,1751565038910,-151.0,0.00016428,2]
[369396744,1751565038919,-151.0,0.00016428,2]
[369396746,1751565038929,-151.0,0.00016428,2]
[369396748,1751565038938,-151.0,0.00016428,2]
[369396750,1751565038948,-151.0,0.00016428,2]
[369396752,1751565038957,-151.0,0.00016428,2]
[369396754,1751565038966,-151.0,0.00016428,2]
[369396756,1751565038975,-151.0,0.00016428,2]
[369396758,1751565038984,-500.0,0.00016437,2]
[369396760,1751565038993,-500.0,0.00016437,2]
[369396762,1751565039003,-500.0,0.00016437,2]
[369396764,1751565039012,-217.60964572,0.00016437,2]
[369396766,1751565039022,-500.0,0.00016437,2]
[369396768,1751565039031,-460.0,0.00016438,2]
[369396770,1751565039040,-460.0,0.00016438,2]
[369396772,1751565039050,-460.0,0.00016438,2]
[369396775,1751565039060,-460.0,0.00016438,2]
[369396777,1751565039070,-460.0,0.00016438,2]
[369396779,1751565039079,-460.0,0.00016438,2]
[369396781,1751565039088,-460.0,0.00016438,2]
[369396783,1751565039098,-332.84948558,0.00016438,2]